Cogmind - Beta 14 @@@ ROGUE MODE // 2024.12.14 @ 16:27:29 Player: dwarfinator Result: Destroyed by S-10 Pest with Light Assault Rifle Performance ------------- Evolutions (1) 500 Regions Visited (3) 600 Robots Destroyed (28) 140 Value Destroyed (814) 814 Prototype IDs (1) 20 Alien Tech Used (0) 0 Bonus (263) 263 TOTAL SCORE: 2337 Bonus ------- Pacifist 200 High Alert Combat Kills 63 Cogmind --------- Core Integrity 0/400 Matter 435/450 Energy 229/265 System Corruption 14% Temperature Cool (9) Movement Rolling (100) Location -9/Mines Parts ------- > --- POWER (1) -------- Improved Ion Engine > --- PROPULSION (2) --- Compact Wheel Compact Wheel > --- UTILITY (4) ------ Medium Storage Unit Compact Matter Pod Core Shielding Core Shielding > --- WEAPON (2) ------- EM Pulse Cannon > --- INVENTORY (10) --- Compact Wheel Compact Wheel Compact Wheel Compact Wheel Compact Matter Pod (50) Compact Matter Pod (0) EM Pulse Cannon EM Pulse Cannon Datajack Mace Peak State ------------ > --- POWER ------------ Ion Engine > --- PROPULSION ------- Compact Wheel Compact Wheel > --- UTILITY ---------- Medium Storage Unit Compact Matter Pod Core Shielding Core Shielding > --- WEAPON ----------- Pulse Rifle EMP Blaster > --- INVENTORY -------- Wheel Wheel Compact Wheel Compact Matter Pod Compact Matter Pod Heavy EM Shotgun Heavy EM Shotgun Datajack Mace [Rating: 16] Favorites ----------- Power Ion Engine Engine Ion Engine Propulsion Compact Wheel Wheel Compact Wheel Utility Core Shielding Storage Small Storage Unit Protection Core Shielding Weapon EMP Blaster Energy Gun Pulse Rifle Energy Cannon EM Pulse Cannon Launcher EMP Blaster Build | -11 -10 -9 -9 ------- Run | Yrd Mat Mat Min Slots Evolved 2 | . . 2 . Power . | . . . . Propulsion . | . . . . Utility 2 | . . 2 . Weapon . | . . . . Parts Attached 29 | 6 . 23 . Power 4 | 1 . 3 . Engine 4 | 1 . 3 . Core . | . . . . Reactor . | . . . . Propulsion 7 | 2 . 5 . Treads . | . . . . Leg . | . . . . Wheel 7 | 2 . 5 . Hover . | . . . . Flight . | . . . . Utility 5 | 1 . 4 . Device . | . . . . Storage 3 | 1 . 2 . Processor . | . . . . Hackware . | . . . . Protection 2 | . . 2 . Artifact . | . . . . Weapon 13 | 2 . 11 . Energy Gun 7 | 2 . 5 . Energy Cannon 3 | . . 3 . Ballistic Gun . | . . . . Ballistic Cannon . | . . . . Launcher 3 | . . 3 . Special Weapon . | . . . . Impact Weapon . | . . . . Slashing Weapon . | . . . . Piercing Weapon . | . . . . Special Melee Weapon . | . . . . Unidentified Prototypes 1 | . . 1 . Corrupted Parts 3 | . . 3 . System Corruption 14 | . . 14 . Parts Lost 15 | . . 15 . Power 2 | . . 2 . Propulsion 3 | . . 3 . Utility . | . . . . Weapon 10 | . . 10 . Highest Loss Streak 7 | . . 7 . To Critical Strikes . | . . . . Average Slot Usage (%) 84 | . 85 84 . Engine 9 | . 14 9 . Wheel 18 | . 28 17 . Storage 16 | . 14 17 . Protection 18 | . . 20 . Energy Gun 11 | . 28 10 . Energy Cannon 2 | . . 3 . Launcher 5 | . . 6 . Peak Build Rating 16 | 6 6 16 14 Average Rating 10 | 3 6 12 14 On Entrance 6 | . 6 6 14 Naked Turns . | . . . . Heaviest Build 30 | 13 13 30 . Greatest Support 32 | 26 26 32 . Greatest Overweight (x) 6 | . . 6 . Average Overweight (x) . | . . . . Largest Inventory Capacity 10 | 8 8 10 10 Average Capacity 8 | 7 8 8 10 Most Carried 10 | 8 7 10 10 Average Carried 7 | 4 6 7 10 Final Capacity 10 | 8 8 10 10 Final Carried 10 | 6 7 10 10 Class Distribution -------------------- 100% | Mutant Dominant Class ---------------- Mutant | -10/Materials Mutant | -9/Materials Mutant | -9/Mines Resources | -11 -10 -9 -9 ----------- Run | Yrd Mat Mat Min Matter Collected 741 | 247 . 494 . Remotely . | . . . . Salvage Created 1321 | . . 1321 . Parts 63 | . . 63 . Haulers Intercepted 1 | . . 1 . Recyclers Shooed 5 | . . 5 . Parts Field Recycled . | . . . . Retrieved Matter . | . . . . Parts Self-Destructed . | . . . . Prevented . | . . . . Kills | -11 -10 -9 -9 ------- Run | Yrd Mat Mat Min Combat Hostiles Destroyed 19 | . . 19 . AOE 19 | . . 19 . Classes Destroyed 8 | . . 8 . Worker 2 | . . 2 . Builder 2 | . . 2 . Hauler 1 | . . 1 . Recycler 3 | . . 3 . Watcher 1 | . . 1 . Grunt 13 | . . 13 . Brawler 1 | . . 1 . Sentry 5 | . . 5 . Best Kill Streak 15 | . . 15 . Combat Bots Only 12 | . . 12 . Max Kills in Single Turn 3 | . . 3 . Gunslinging . | . . . . Exploded 3 | . . 3 . Melee . | . . . . Uniques/NPCs Destroyed . | . . . . Combat | -11 -10 -9 -9 -------- Run | Yrd Mat Mat Min Hostile Shots Fired 194 | . 35 158 1 Missed 57 | . 13 44 . Damage Taken 1820 | . 267 1546 7 Core 481 | . 80 395 6 Absorbed by Shields . | . . . . Redirected to Shielding 85 | . . 84 1 Core Remaining (%) 84 | 100 68 . . Volleys Fired 35 | . . 34 1 Largest 1 | . . 1 1 Hottest 63 | . . 50 63 Shots Fired 36 | . . 35 1 Gun 1 | . . 1 . Cannon 1 | . . . 1 Launcher 34 | . . 34 . Special . | . . . . Kinetic . | . . . . Thermal . | . . . . Explosive . | . . . . Electromagnetic 36 | . . 35 1 Robot Hit Streak 7 | . . 7 . Robot Miss Streak 2 | . . 2 2 Penetration Max . | . . . . Secondary Targets . | . . . . Shots Hit Robots 26 | . . 26 . Core Hits 38 | . . 38 . Critical Kills . | . . . . Critical Parts Destroyed . | . . . . Critical Strikes . | . . . . Melee Attacks . | . . . . Impact . | . . . . Slashing . | . . . . Piercing . | . . . . Sneak Attacks . | . . . . Combat Hostiles . | . . . . Follow-up Attacks . | . . . . Damage Inflicted 1947 | . . 1947 . Guns 13 | . . 13 . Cannons . | . . . . Explosions 1930 | . . 1930 . Melee . | . . . . Ramming 4 | . . 4 . Kinetic . | . . . . Thermal 334 | . . 334 . Explosive 195 | . . 195 . Electromagnetic 1414 | . . 1414 . Impact . | . . . . Slashing . | . . . . Piercing . | . . . . Highest Corruption 14 | . . 14 14 Average Corruption 13 | . . 13 14 Corruption Purged . | . . . . Corruption Blocked . | . . . . Effects 16 | . . 16 . Message Errors 3 | . . 3 . Matter Fused 1 | . . 1 . Heat Flow Errors 3 | . . 3 . Energy Discharges 3 | . . 3 . Data Loss (minor) 4 | . . 4 . Data Loss (major) 1 | . . 1 . Misfires 1 | . . 1 . Overload Shots . | . . . . Overflow Damage . | . . . . Projectiles . | . . . . Explosions . | . . . . Melee . | . . . . Knockbacks . | . . . . Impact . | . . . . Kinetic . | . . . . Secondary . | . . . . Self-Inflicted Damage 34 | . . 34 . Shots 2 | . . 2 . Rammed 1 | . . 1 . Targets Rammed 1 | . . 1 . Kicked . | . . . . Crushed . | . . . . Highest Temperature 240 | . . 240 9 Average Temperature 59 | . . 60 9 Received Heat Transfer 831 | . 150 681 . Siege Activations . | . . . . Robots Corrupted . | . . . . Combat Hostiles . | . . . . Parts Fried 8 | . . 8 . Impact Corruptions . | . . . . Robots Melted . | . . . . Combat Hostiles . | . . . . Parts Melted 1 | . . 1 . Heat Transferred 650 | . . 650 . Parts Sabotaged . | . . . . Parts Stolen . | . . . . Parts Stripped . | . . . . Power Chain Reactions 10 | . . 10 . Alert | -11 -10 -9 -9 ------- Run | Yrd Mat Mat Min Peak Influence 556 | . 37 556 216 Initial 216 | . . 15 216 Average 292 | . 15 352 216 Maximum Alert Level 2 | . . 2 1 Low Security (%) 41 | 100 100 29 . Level 1 7 | . . 8 100 Level 2 50 | . . 61 . Level 3 . | . . . . Level 4 . | . . . . Level 5 . | . . . . High Security . | . . . . Max Security . | . . . . Squads Dispatched 4 | . 1 3 . Investigation . | . . . . Extermination . | . . . . Reinforcement 4 | . 1 3 . Assault . | . . . . Garrison . | . . . . Intercept . | . . . . Searches Triggered . | . . . . Construction Impeded 1 | . . 1 . Haulers Reinforced . | . . . . Active Scanning Responses . | . . . . Cargo Convoy Interrupts . | . . . . Stealth | -11 -10 -9 -9 --------- Run | Yrd Mat Mat Min Distress Signals 4 | . . 4 . Communications Jammed . | . . . . Distress Signals . | . . . . Times Spotted 48 | . 7 38 3 Peak Tracking Total 10 | . 6 10 . Tactical Retreats 4 | . . 4 . Traps | -11 -10 -9 -9 ------- Run | Yrd Mat Mat Min Traps Triggered . | . . . . Indirectly . | . . . . Trap Hack Attempts . | . . . . Triggered . | . . . . Disarmed . | . . . . Reprogrammed . | . . . . Reused . | . . . . Traps Extracted . | . . . . Installed . | . . . . Triggered . | . . . . Machines | -11 -10 -9 -9 ---------- Run | Yrd Mat Mat Min Machines Disabled 5 | . . 5 . Max in Single Turn 2 | . . 2 . Machines Repaired . | . . . . Machines Dismantled . | . . . . Machines Sabotaged . | . . . . Overloaded Fab Kills . | . . . . Hacking | -11 -10 -9 -9 --------- Run | Yrd Mat Mat Min Machines Accessed 4 | . 1 3 . Terminals 4 | . 1 3 . Fabricators . | . . . . Repair Stations . | . . . . Recycling Units . | . . . . Scanalyzers . | . . . . Garrison Access . | . . . . Total Hacks 9 | . 3 6 . Successful 3 | . 1 2 . Failed 6 | . 2 4 . Catastrophic 3 | . 1 2 . Database Lockouts . | . . . . Manual 9 | . 3 6 . Terminals 9 | . 3 6 . Fabricators . | . . . . Repair Stations . | . . . . Recycling Units . | . . . . Scanalyzers . | . . . . Garrison Access . | . . . . Terminal Hacks . | . . . . Fabricator Hacks . | . . . . Repair Station Hacks . | . . . . Recycling Unit Hacks . | . . . . Scanalyzer . | . . . . Garrison Access Hacks . | . . . . Unauthorized Hacks 3 | . 1 2 . Terminals 3 | . 1 2 . Disrupt 2 | . 1 1 . Skim 1 | . . 1 . Fabricators . | . . . . Repair Stations . | . . . . Recycling Units . | . . . . Scanalyzers . | . . . . Garrison Access . | . . . . Data Cores Recovered . | . . . . Used . | . . . . Hacking Detections 4 | . 1 3 . Full Trace Events . | . . . . Feedback Events . | . . . . Feedback Blocked . | . . . . Robot Schematics Acquired . | . . . . Robots Built . | . . . . Authchips . | . . . . Time . | . . . . Total Robot Build Rating . | . . . . Part Schematics Acquired . | . . . . Parts Built . | . . . . Authchips . | . . . . Time . | . . . . Total Part Build Rating . | . . . . Parts Repaired . | . . . . Time . | . . . . Parts Recycled . | . . . . Recycled Matter . | . . . . Retrieved Matter . | . . . . Retrieved Components . | . . . . Parts Scanalyzed . | . . . . Part Schematics Acquired . | . . . . Parts Damaged . | . . . . Bothacking | -11 -10 -9 -9 ------------ Run | Yrd Mat Mat Min Used RIF Installer . | . . . . Robots Hacked . | . . . . Non-combat . | . . . . Combat . | . . . . Robot Hacks Applied . | . . . . Relay Couplers Released . | . . . . Fabnet Peak Effective % . | . . . . Robots Rewired . | . . . . Allies Hacked . | . . . . Hacks Repelled . | . . . . Allies | -11 -10 -9 -9 -------- Run | Yrd Mat Mat Min Total Allies . | . . . . Largest Group . | . . . . Highest-Rated Group . | . . . . Highest-Rated Ally . | . . . . Total Orders . | . . . . Ally Attacks . | . . . . Total Damage . | . . . . Kills . | . . . . Allies Corrupted . | . . . . Allies Melted . | . . . . Intel | -11 -10 -9 -9 ------- Run | Yrd Mat Mat Min Robot Analysis Total . | . . . . Derelict Logs Recovered . | . . . . Drone Launches . | . . . . Drone Recoveries . | . . . . Exploration | -11 -10 -9 -9 ------------- Run | Yrd Mat Mat Min Turns Passed 932 | 86 77 768 1 Spaces Moved 736 | 80 83 573 . Core 23 | 3 . 20 . Treads . | . . . . Legs . | . . . . Wheels 713 | 77 83 553 . Hover . | . . . . Flight . | . . . . Fastest Speed 50 | 50 90 90 . Average Speed 100 | 87 90 103 . Slowest Speed 350 | 90 90 350 . Overloaded Moves . | . . . . Propulsion Burnouts . | . . . . Robots Hopped . | . . . . Cave-ins Triggered . | . . . . Exploration Rate (%) 21 | 3 29 51 4 Regions Visited 3 Branch Regions 1 Pre-discovered Areas . | . . . . Known Exits Taken . | . . . . Unknown Exits Taken 3 | 1 1 1 . Scrap Searched . | . . . . Spaces Dug . | . . . . Terrain Destroyed 49 | . . 49 . Melee . | . . . . Projectile . | . . . . AOE 49 | . . 49 . Terrain Rammed . | . . . . Walls Destroyed . | . . . . Machines Disabled . | . . . . Actions | -11 -10 -9 -9 --------- Run | Yrd Mat Mat Min Total 899 | 93 85 720 1 Wait 58 | . 2 56 . Move 733 | 79 82 572 . Hop . | . . . . Pick Up 28 | 8 1 19 . Fast Attach 15 | 4 . 11 . Attach 10 | 2 . 8 . Detach 1 | . . 1 . Swap 4 | . . 4 . Drop 14 | . . 14 . Fire 35 | . . 34 1 Melee . | . . . . Ram 1 | . . 1 . Kick . | . . . . Crush . | . . . . Escape Stasis . | . . . . Rewire . | . . . . Trap . | . . . . Miscellaneous . | . . . . Route ------- -11/Scrapyard -10/Materials -9/Materials (discovered 4 exits: [*Mat] / [*Min] / [*Sto x2]) -9/Mines History --------- Turn | Location | Event 30 | -11/Scrapyard | Discovered new exit (range 15) 87 | -11/Scrapyard | Entered Materials 150 | -10/Materials | Discovered new exit (range 10) 164 | -10/Materials | Entered another Materials area 164 | -9/Materials | Evolved 2 slots: Utility x2 252 | -9/Materials | Discovered new exit (range 10) 304 | -9/Materials | Discovered new exit (range 13) 315 | -9/Materials | Build established: Mutant 349 | -9/Materials | Lost 7 parts (1p2n4w) 382 | -9/Materials | Core integrity fell below 50% 462 | -9/Materials | Lost 3 parts (1n2w) 466 | -9/Materials | Destroyed 12 combat bots 497 | -9/Materials | System corruption reached 10% 578 | -9/Materials | Core integrity fell below 20% 735 | -9/Materials | Discovered new exit (range 8) 749 | -9/Materials | Discovered new exit (range 13) 932 | -9/Materials | Entered Mines 933 | -9/Mines | Destroyed by S-10 Pest with Light Assault Rifle Last Messages --------------- 00823_ Signal Interpreter fried. 00823_ W-16 Scout destroyed. 00827_ Door malfunctions. 00833_ EMP Blaster destroyed. 00836_ U-05 Engineer lays Concrete. 00839_ U-05 Engineer repairs door. 00840_ U-05 Engineer lays Concrete. 00856_ System corrupted: Component data lost. 00880_ W<0FOX6XWHQG:QAAGOEUIBPOJKP 00892_ C-30 ARC bursts open, deploying its payload. 00892_ G-47 Trooper unfolds itself. 00892_ G-34 Mercenary unfolds itself. 00892_ U-05 Engineer destroyed. 00892_ R-06 Scavenger collects Terrain Scan Processor. 00895_ System corrupted: Energy discharge (-92). 00896_ R-06 Scavenger collects Wheel. 00920_ System corrupted: Heat flow error (+103). LOCATION=UNKNOWN GOAL=ESCAPE Something is scanning the area. Map ----- +----------------------------------------------------+ | | | | | | | | | | | | | ????????????????????????????????? | | ????????????????????????????????? | | ????????????????????????????????? | | ????????????????????????????????? | | ????????????????????????????????? | | ????????????????????????????????? | | ????????????????????????????????? | | ????????????????????????????????? | | ????????????????????????????????? | | ????????????????????????????????? | | ????????????????????????????????? | | ????????????????????????????????? | | ??????#####????????#????????????? | | ???#### ####???t #????????????? | | ??## ### ??????????????? | | ??# ????????????????? | | ???# #?????????????????? | | ????# #??????????????????? | | ????# s #???????????????????? | | ????#s @ #????????????????????? | | ????# #????????????????????? | | ????#s ##????????????????????? | | ???# ##?????????????????????? | | ???# ####??????????????????????? | | ???###??????????????????????????? | | ????????????????????????????????? | | ????????????????????????????????? | | ????????????????????????????????? | | ????????????????????????????????? | | ????????????????????????????????? | | ????????????????????????????????? | | ????????????????????????????????? | | ????????????????????????????????? | | ????????????????????????????????? | | ????????????????????????????????? | | ????????????????????????????????? | | ????????????????????????????????? | | ????????????????????????????????? | | ????????????????????????????????? | | ????????????????????????????????? | | ????????????????????????????????? | | ????????????????????????????????? | | ????????????????????????????????? | | ????????????????????????????????? | +----------------------------------------------------+ Best States ------------- Heat Dissipation 28 Energy Generation 12 Energy Capacity 265 Matter Stores 450 Matter Capacity 450 Sight Range 16 Terrain Scan Density 10 Core Shielding 20 Evasion (%) 44 Item Schematics ----------------- None Robot Schematics ------------------ None Fabricated ------------ Nothing Alien Tech Used ----------------- None Achievements -------------- None Challenges ------------ None Game ------ Seed AntimatterArmorRegenerator Manual? 0 Play Time 00:24:01 Cumulative 201.7 hours Start 2024.12.14 @ 16:02:10 End 2024.12.14 @ 16:27:29 Sessions 1 Manual Loads 0 Difficulty Rogue Special Mode None Game No. 32 Rogue 29 Adventurer 3 Explorer 0 Win Type - Total 8 Types 8/0/0/0/0/0/0/0/0 Lore% 37 Gallery% 70 Achievement% 71 Wizard Run 0 Options --------- Layout 0 ASCII 0 Keyboard 0 Movement Numpad Keybinds 0 Fullscreen 1 Font 18/SmallcapsGlow Map View 76x50 Zoom Use 0% Tactical HUD 1 Map Filters NONE Filters NONE Steam 1 RUN: 3f9083a5-a2f3-4fa4-a8b1-00dd408ad0cd